bitfinex/quotes_BTCUSD_20240620
["timestamp","ask_amount","ask_price","bid_price","bid_amount"]
[1718849558659,0.01326947,65123.0,65120.0,0.1335]
[1718849558819,0.01326905,65122.0,65120.0,0.1335]
[1718849559019,0.01326905,65121.0,65120.0,0.1335]
[1718849559216,0.1,65124.0,65120.0,0.1335]
[1718849559217,0.01326905,65123.0,65120.0,0.1335]
[1718849559466,0.01326905,65121.0,65120.0,0.1335]
[1718849559699,0.01326905,65123.0,65120.0,0.1335]
[1718849559831,0.01426905,65123.0,65120.0,0.1335]
[1718849560057,0.01326905,65122.0,65120.0,0.1335]
[1718849560229,0.01326905,65121.0,65120.0,0.1335]
[1718849560429,0.01426905,65123.0,65120.0,0.1335]
[1718849560675,0.01326905,65122.0,65120.0,0.1335]
[1718849560897,0.101,65124.0,65120.0,0.1335]
[1718849560898,0.46068,65121.0,65120.0,0.1335]
[1718849561029,0.78106905,65121.0,65120.0,0.1335]
[1718849561230,0.153567,65118.0,65117.0,0.134446]
[1718849561504,0.16683605,65118.0,65117.0,0.238846]
[1718849561712,0.01326905,65118.0,65117.0,0.238846]
[1718849561850,0.01326905,65118.0,65117.0,0.258846]
[1718849562286,0.153562,65121.0,65120.0,0.006]
[1718849562431,0.153562,65121.0,65120.0,0.008]
[1718849562432,0.17155319,65121.0,65120.0,0.008]
[1718849562728,0.17155319,65121.0,65120.0,0.002]
[1718849562959,0.17155319,65121.0,65119.0,0.2379]
[1718849563163,0.307103,65125.0,65119.0,0.2379]
[1718849563164,0.01799119,65120.0,65119.0,0.411465]
[1718849563341,0.00086,65127.0,65122.0,0.2411]
[1718849563562,0.01919946,65126.0,65122.0,0.2411]
[1718849563788,0.11919946,65126.0,65122.0,0.2411]
[1718849563978,0.01919946,65125.0,65122.0,0.2411]
[1718849565071,0.01919946,65125.0,65119.0,0.003]
[1718849565266,0.307107,65124.0,65120.0,0.1326]
[1718849565476,0.01919946,65123.0,65120.0,0.1326]
[1718849565643,0.15356,65121.0,65120.0,0.1326]
[1718849565842,0.17275946,65121.0,65120.0,0.1326]
[1718849566247,0.01919946,65121.0,65120.0,0.1326]
[1718849567041,0.02139722,65121.0,65120.0,0.1326]
[1718849567247,0.02139722,65121.0,65120.0,0.1356]
[1718849568034,0.02139722,65121.0,65120.0,0.003]
[1718849568035,0.48207722,65121.0,65120.0,0.003]
[1718849568815,0.78919722,65121.0,65120.0,0.003]
[1718849569015,1.24887834,65121.0,65120.0,0.007]
[1718849569133,1.34887834,65121.0,65120.0,0.007]
[1718849569617,1.34728897,65121.0,65120.0,0.007]
[1718849569937,1.34728897,65121.0,65120.0,0.003]
[1718849570138,0.767835,65118.0,65117.0,0.000946]
[1718849570342,0.867835,65118.0,65117.0,0.000946]
[1718849570547,0.88768144,65118.0,65117.0,0.000946]
[1718849572372,0.88868144,65118.0,65117.0,0.000946]
[1718849572782,0.89068144,65118.0,65117.0,0.000946]
[1718849573720,0.89068144,65118.0,65117.0,0.101946]
[1718849574112,0.12284644,65118.0,65117.0,0.101946]
[1718849574264,0.12284644,65118.0,65117.0,0.234146]
[1718849575354,0.12184644,65118.0,65117.0,0.234146]
[1718849575524,0.27541344,65118.0,65117.0,0.238146]
[1718849576490,0.27341344,65118.0,65117.0,0.238146]
[1718849576903,0.27341344,65118.0,65117.0,0.241146]
[1718849579926,0.01984644,65118.0,65117.0,0.241146]
[1718849580735,0.01984644,65120.0,65117.0,0.241146]
[1718849580945,0.01984644,65119.0,65117.0,0.241146]
[1718849581147,0.01984644,65118.0,65117.0,0.241146]
[1718849581299,0.01984644,65120.0,65117.0,0.241146]
[1718849581504,0.01984644,65119.0,65117.0,0.241146]
[1718849581725,0.01984644,65118.0,65117.0,0.238146]
[1718849582099,0.01984644,65120.0,65117.0,0.238146]
[1718849582304,0.01984644,65118.0,65117.0,0.234146]
[1718849582525,0.01984644,65120.0,65117.0,0.234146]
[1718849582759,0.01984644,65120.0,65118.0,0.2431]
[1718849582932,0.01984644,65120.0,65119.0,0.02]
[1718849583134,0.253551,65125.0,65121.0,0.2423]
[1718849583371,0.02082182,65124.0,65121.0,0.2423]
[1718849583713,0.02082182,65124.0,65123.0,0.2419]
[1718849583903,0.02082182,65124.0,65123.0,0.2619]
[1718849584262,0.1,65129.0,65125.0,0.2371]
[1718849584263,0.02129108,65126.0,65125.0,0.2371]
[1718849584469,0.253542,65129.0,65125.0,0.2371]
[1718849584667,0.02129113,65126.0,65125.0,0.2571]
[1718849584859,0.02129113,65126.0,65125.0,0.2371]
[1718849587083,0.02187471,65130.0,65125.0,0.2371]
[1718849587301,0.02143816,65126.0,65125.0,0.2631]
[1718849588041,0.02143816,65126.0,65125.0,0.719751]
[1718849588212,0.02143816,65126.0,65125.0,0.41265]
[1718849588420,0.153528,65135.0,65126.0,0.2571]
[1718849588829,0.02289111,65127.0,65126.0,0.410648]
[1718849590323,0.02289111,65127.0,65126.0,0.423648]
[1718849591204,0.02289111,65127.0,65126.0,0.436648]
[1718849591451,0.00086,65127.0,65126.0,0.436648]
[1718849592602,0.00086,65127.0,65126.0,0.743745]
[1718849594168,0.00086,65127.0,65126.0,0.723745]
[1718849594368,0.00086,65127.0,65126.0,0.2631]
[1718849594945,0.02253059,65127.0,65126.0,0.2631]
[1718849597092,0.02167753,65127.0,65126.0,0.2631]
[1718849603357,0.02167753,65127.0,65126.0,0.2631]
[1718849604581,0.00086,65127.0,65126.0,0.2631]
[1718849604745,0.02274705,65127.0,65126.0,0.2631]
[1718849607471,0.02272716,65127.0,65126.0,0.2631]
[1718849608072,0.02272716,65127.0,65126.0,0.2831]
[1718849608219,0.02272716,65127.0,65126.0,0.2631]
[1718849613468,0.17627316,65127.0,65126.0,0.2631]
[1718849614628,0.02272716,65127.0,65126.0,0.2631]
[1718849615154,0.17627316,65127.0,65126.0,0.2631]
[1718849619925,0.17542356,65127.0,65126.0,0.2631]
[1718849623136,0.02187756,65127.0,65126.0,0.2631]
[1718849627977,0.307069,65132.0,65126.0,0.2631]
[1718849628522,0.153541,65129.0,65126.0,0.2631]
[1718849628959,0.153541,65129.0,65126.0,0.2501]
[1718849629358,0.153541,65129.0,65126.0,0.2571]
[1718849629763,0.153541,65129.0,65126.0,0.2441]
[1718849630180,0.153541,65129.0,65126.0,0.2511]
[1718849630355,0.153541,65129.0,65126.0,0.2441]
[1718849630582,0.153539,65130.0,65128.0,0.02]
[1718849630983,0.153539,65130.0,65127.0,0.02]
[1718849632558,0.153525,65136.0,65131.0,0.02]
[1718849632775,0.253525,65136.0,65132.0,0.2313]
[1718849632976,0.153528,65135.0,65132.0,0.2313]
[1718849633182,0.153528,65135.0,65132.0,0.2513]
[1718849633475,0.1,65136.0,65132.0,0.2313]
[1718849633476,0.253525,65136.0,65132.0,0.2313]
[1718849633674,0.153528,65135.0,65132.0,0.2313]
[1718849634489,0.25167182,65136.0,65132.0,0.2513]
[1718849634859,0.25167182,65136.0,65132.0,0.2313]
[1718849635191,0.25167182,65136.0,65132.0,0.2343]
[1718849635389,0.25167182,65136.0,65132.0,0.2373]
[1718849636011,0.25167182,65136.0,65132.0,0.2343]
[1718849636173,0.25167182,65136.0,65132.0,0.2363]
[1718849636372,0.25167182,65136.0,65132.0,0.2333]
[1718849636824,0.25167182,65136.0,65132.0,0.2343]
[1718849637893,0.307908,65137.0,65132.0,0.2343]
[1718849637894,0.01954375,65135.0,65134.0,0.09628172]
[1718849638046,0.00086,65137.0,65136.0,0.173524]
[1718849638410,0.02039929,65137.0,65136.0,0.415224]
[1718849638929,0.02039929,65137.0,65136.0,0.722273]
[1718849640168,0.02039929,65137.0,65136.0,0.730273]
[1718849640771,0.02039929,65137.0,65136.0,1.037322]
[1718849641091,0.02039929,65137.0,65136.0,1.045322]
[1718849641731,0.02039929,65137.0,65136.0,1.105222]
[1718849644151,0.00086,65137.0,65136.0,1.105222]
[1718849646136,0.30762931,65154.0,65151.0,0.02]
[1718849646137,0.00066431,65154.0,65151.0,0.02]
[1718849646341,0.11983083,65153.0,65151.0,0.02]
[1718849646553,0.15414731,65154.0,65150.0,0.02]
[1718849646554,0.01983083,65152.0,65150.0,0.02]
[1718849646743,0.1,65153.0,65151.0,0.02]
[1718849647168,0.01931908,65152.0,65151.0,0.02]
[1718849647612,0.00066431,65154.0,65153.0,0.2553]
[1718849648058,0.019674,65154.0,65153.0,0.2553]
[1718849648700,0.019674,65154.0,65153.0,0.2603]
[1718849649575,0.00066431,65154.0,65153.0,0.2603]
[1718849650028,0.00066431,65154.0,65153.0,0.2663]
[1718849650487,0.00066431,65154.0,65153.0,0.2613]
[1718849650640,0.00066431,65154.0,65153.0,0.2733]
[1718849651461,0.00066431,65154.0,65153.0,0.2673]
[1718849653169,0.00066431,65154.0,65153.0,0.2553]
[1718849653772,0.00066431,65154.0,65153.0,0.2763]
[1718849654176,0.24743005,65160.0,65159.0,0.02]
[1718849654376,0.26760412,65160.0,65159.0,0.02]
[1718849655472,0.26760412,65160.0,65159.0,0.023]
[1718849655882,0.11413512,65160.0,65159.0,0.265]
[1718849656049,0.00861,65163.0,65162.0,0.02]
[1718849656203,0.02906884,65163.0,65162.0,0.02]
[1718849658003,0.02860008,65163.0,65162.0,0.02]
[1718849658485,0.02860008,65163.0,65162.0,0.021]
[1718849658893,0.00814124,65163.0,65162.0,0.021]
[1718849660115,0.00814124,65163.0,65162.0,0.023]
[1718849660426,0.00814124,65163.0,65162.0,0.003]
[1718849660844,0.83534624,65163.0,65162.0,0.003]
[1718849661047,0.85579696,65163.0,65162.0,0.003]
[1718849661248,0.83534624,65163.0,65162.0,0.003]
[1718849661459,0.85384735,65163.0,65162.0,0.003]
[1718849663726,0.86634735,65163.0,65162.0,0.003]
[1718849663913,1.17326935,65163.0,65162.0,0.003]
[1718849664562,1.27326935,65163.0,65162.0,0.003]
[1718849664777,0.306971,65153.0,65147.0,0.1072]
[1718849664988,0.306984,65150.0,65147.0,0.1072]
[1718849665630,0.767482,65148.0,65147.0,0.1072]
[1718849665807,0.46051,65145.0,65144.0,0.11]
[1718849666922,0.47474359,65145.0,65144.0,0.11]
[1718849667327,0.47474359,65145.0,65144.0,0.13]
[1718849667548,0.47474392,65145.0,65144.0,0.13]
[1718849667755,0.306973,65153.0,65148.0,0.2517]
[1718849668025,0.153495,65149.0,65148.0,0.2717]
[1718849668229,0.01423128,65149.0,65148.0,0.2717]
[1718849668346,0.15349,65151.0,65150.0,0.02]
[1718849668549,0.16782809,65151.0,65150.0,0.02]
[1718849668780,0.153491,65150.0,65149.0,0.07628172]
[1718849669038,0.16782909,65150.0,65149.0,0.07628172]
[1718849669260,0.16782909,65150.0,65149.0,0.09628172]
[1718849670366,0.01433809,65150.0,65149.0,0.09628172]
[1718849670546,0.153485,65153.0,65151.0,0.02]
[1718849670742,0.01603352,65152.0,65151.0,0.02]
[1718849671145,0.153485,65153.0,65149.0,0.10428172]
[1718849671324,0.153487,65152.0,65149.0,0.008]
[1718849671526,0.16952052,65152.0,65148.0,0.2717]
[1718849671741,0.01644786,65151.0,65148.0,0.2717]
[1718849671954,0.01644786,65151.0,65148.0,0.2517]
[1718849672154,0.01644786,65151.0,65149.0,0.008]
[1718849672582,0.16993786,65151.0,65148.0,0.2517]
[1718849672785,0.306989,65149.0,65143.0,0.244]
[1718849672985,0.153499,65147.0,65143.0,0.244]
[1718849673189,0.01644786,65146.0,65143.0,0.244]
[1718849673383,0.01644786,65145.0,65143.0,0.244]
[1718849673580,0.153499,65147.0,65143.0,0.244]
[1718849673761,0.0154477,65146.0,65143.0,0.244]
[1718849674186,0.0154477,65146.0,65143.0,0.264]
[1718849674428,0.0154477,65146.0,65143.0,0.244]
[1718849674743,0.307007,65145.0,65143.0,0.244]
[1718849674947,0.307007,65145.0,65142.0,0.07628172]
[1718849674948,0.153508,65143.0,65142.0,0.07628172]
[1718849675167,0.1689557,65143.0,65142.0,0.07628172]
[1718849676407,0.1689557,65143.0,65142.0,0.10428172]
[1718849677122,0.1689557,65143.0,65142.0,0.09028172]
[1718849677331,0.1689557,65143.0,65142.0,0.10228172]
[1718849677696,0.1689557,65143.0,65142.0,0.08828172]
[1718849677872,0.1689557,65143.0,65142.0,0.08922772]
[1718849678079,0.7829877,65143.0,65142.0,0.024946]
[1718849681936,0.7829877,65143.0,65142.0,0.267346]
[1718849681937,0.4759717,65143.0,65142.0,0.267346]
[1718849682142,0.4759717,65143.0,65142.0,0.287346]
[1718849684007,0.1689557,65143.0,65142.0,0.287346]
[1718849684210,0.4759717,65143.0,65142.0,0.267346]
[1718849684385,0.4759717,65143.0,65142.0,0.287346]
[1718849684585,0.4759717,65143.0,65142.0,0.267346]
[1718849684795,0.1689557,65143.0,65142.0,0.287346]
[1718849685327,0.0154477,65143.0,65142.0,0.347246]
[1718849685527,0.153495,65149.0,65148.0,0.2444]
[1718849685719,0.17057496,65149.0,65148.0,0.2644]
[1718849686705,0.17057496,65149.0,65148.0,0.2684]
[1718849687118,0.17057496,65149.0,65148.0,0.2484]
[1718849687502,0.47756296,65149.0,65148.0,0.2484]
[1718849687900,0.47756296,65149.0,65148.0,0.2524]
[1718849688289,0.47756296,65149.0,65148.0,0.2484]
[1718849688588,0.47756296,65149.0,65148.0,0.2534]
[1718849688815,0.47756296,65149.0,65148.0,0.2494]
[1718849689054,0.47756296,65149.0,65148.0,0.2444]
[1718849689263,0.47756296,65149.0,65148.0,0.2554]
[1718849689833,0.47756296,65149.0,65148.0,0.2514]
[1718849690084,0.47756296,65149.0,65148.0,0.2584]
[1718849693369,0.47756296,65149.0,65148.0,0.1502]
[1718849693567,0.47756296,65149.0,65148.0,0.014]
[1718849700194,0.01707996,65149.0,65148.0,0.014]
[1718849700411,0.02160471,65156.0,65149.0,0.1318]
[1718849700412,0.0174608,65150.0,65149.0,0.1318]
[1718849700563,0.02160471,65156.0,65150.0,0.1042]
[1718849700938,0.153487,65152.0,65151.0,0.07628172]
[1718849701139,0.253487,65152.0,65151.0,0.07628172]
[1718849701359,0.153489,65151.0,65150.0,0.00462]
[1718849701518,0.23166831,65151.0,65150.0,0.00462]
[1718849701726,0.53864731,65151.0,65150.0,0.00462]
[1718849701953,0.84562731,65151.0,65150.0,0.00462]
[1718849702338,0.767457,65150.0,65149.0,0.008]
[1718849702495,0.153501,65147.0,65144.0,0.236]
[1718849702693,0.01827931,65146.0,65144.0,0.236]
[1718849703133,0.153501,65147.0,65144.0,0.236]
[1718849703134,0.01827931,65145.0,65144.0,0.236]
[1718849703802,0.01827931,65145.0,65144.0,0.244]
[1718849704434,0.78579631,65145.0,65144.0,0.008]
[1718849705042,0.84569631,65145.0,65144.0,0.008]
[1718849705246,0.76754,65143.0,65141.0,0.07628172]
[1718849705420,0.78581931,65143.0,65141.0,0.07628172]
[1718849706904,0.78581931,65143.0,65142.0,0.013946]
[1718849707028,0.78581931,65143.0,65142.0,0.026946]
[1718849708305,0.47880331,65143.0,65142.0,0.026946]
[1718849709318,0.01827931,65143.0,65142.0,0.271546]
[1718849709532,0.01827931,65143.0,65142.0,0.291546]
[1718849709947,0.01827931,65143.0,65142.0,0.271546]
[1718849710150,0.01827931,65143.0,65142.0,0.291546]
[1718849710350,0.01827931,65143.0,65142.0,0.271546]
[1718849710930,0.01760836,65143.0,65142.0,0.271546]
[1718849711098,0.01760836,65146.0,65142.0,0.271546]
[1718849711718,0.01760836,65143.0,65142.0,0.271546]
[1718849711918,0.01760836,65143.0,65142.0,0.245546]
[1718849712153,0.01760836,65146.0,65142.0,0.245546]
[1718849712354,0.01760836,65146.0,65142.0,0.263546]
[1718849712560,0.01760836,65146.0,65142.0,0.254546]
[1718849712766,0.01760836,65146.0,65142.0,0.245546]
[1718849712963,0.01760836,65145.0,65142.0,0.258546]
[1718849713167,0.01760836,65144.0,65142.0,0.271546]
[1718849713407,0.01760836,65144.0,65142.0,0.258546]
[1718849713611,0.01760836,65143.0,65142.0,0.267546]
[1718849714582,0.01760836,65143.0,65142.0,0.421055]
[1718849714814,0.01774653,65143.0,65142.0,0.418255]
[1718849715203,0.01774653,65143.0,65142.0,0.282555]
[1718849715400,0.01774653,65143.0,65142.0,0.279555]
[1718849715624,0.153495,65149.0,65143.0,0.1364]
[1718849715823,0.01798243,65148.0,65143.0,0.1364]
[1718849716645,0.153499,65147.0,65143.0,0.1356557]
[1718849716848,0.153499,65147.0,65142.0,0.120046]
[1718849716849,0.307016,65143.0,65142.0,0.000946]
[1718849717082,0.17149043,65143.0,65142.0,0.000946]
[1718849717535,0.01798243,65143.0,65142.0,0.000946]
[1718849717740,0.17149043,65143.0,65142.0,0.000946]
[1718849718160,0.78552243,65143.0,65142.0,0.000946]
[1718849718384,1.10183843,65143.0,65142.0,0.000946]
[1718849718589,1.37439955,65143.0,65142.0,0.000946]
[1718849718794,1.95126255,65143.0,65142.0,0.000946]
[1718849719013,2.00422633,65143.0,65142.0,0.000946]
[1718849719157,2.14140489,65143.0,65142.0,0.000946]
[1718849719567,2.54842089,65143.0,65142.0,0.000946]
[1718849719765,2.56379647,65143.0,65142.0,0.000946]
[1718849720165,2.44834068,65143.0,65142.0,0.000946]
[1718849720509,2.47114233,65143.0,65142.0,0.001946]
[1718849720710,2.47114233,65143.0,65142.0,0.002946]
[1718849721036,2.60823281,65143.0,65142.0,0.006066]
[1718849721220,2.47114233,65143.0,65142.0,0.006066]
[1718849721781,2.48855796,65143.0,65142.0,0.006066]
[1718849722212,2.47114233,65143.0,65142.0,0.006066]
[1718849722416,2.47114233,65143.0,65142.0,0.004066]
[1718849722914,2.77815833,65143.0,65142.0,0.006066]
[1718849723260,2.77815833,65143.0,65142.0,0.005066]
[1718849723510,2.61825833,65143.0,65142.0,0.004066]
[1718849723726,2.67815833,65143.0,65142.0,0.006066]
[1718849725028,2.79422224,65143.0,65142.0,0.006066]
[1718849725383,2.94677638,65143.0,65142.0,0.006066]
[1718849725955,2.79422224,65143.0,65142.0,0.006066]
[1718849726211,2.32730624,65143.0,65142.0,0.006066]
[1718849726382,2.37336424,65143.0,65142.0,0.006066]
[1718849726585,2.24250424,65143.0,65142.0,0.006066]
[1718849726786,2.12110424,65143.0,65142.0,0.006066]
[1718849726950,1.40736333,65143.0,65142.0,0.006066]
[1718849727151,1.42499955,65143.0,65142.0,0.006066]
[1718849727583,1.51628966,65143.0,65142.0,0.006066]
[1718849727784,2.17149155,65143.0,65142.0,0.005066]
[1718849727997,2.31573118,65143.0,65142.0,0.004066]
[1718849728197,2.31572101,65143.0,65142.0,0.006066]
[1718849729208,2.62894115,65143.0,65142.0,0.006066]
[1718849729548,2.62747547,65143.0,65142.0,0.006066]
[1718849729684,2.62747547,65143.0,65142.0,0.005066]
[1718849730355,2.62747547,65143.0,65142.0,0.004066]
[1718849730556,2.62747547,65143.0,65142.0,0.005066]
[1718849730775,2.62747547,65143.0,65142.0,0.006066]
[1718849731185,2.47492133,65143.0,65142.0,0.005066]
[1718849731412,2.47492133,65143.0,65142.0,0.006066]
[1718849731413,2.0893876,65143.0,65142.0,0.006066]
[1718849731575,1.97527933,65143.0,65142.0,0.006066]
[1718849731777,3.96923133,65143.0,65142.0,0.006066]
[1718849731986,2.24186274,65143.0,65142.0,0.006066]
[1718849732144,4.96946317,65143.0,65142.0,0.006066]
[1718849732357,2.14389717,65143.0,65142.0,0.006066]
[1718849732609,5.04505603,65143.0,65142.0,0.006066]
[1718849732781,4.78585703,65143.0,65142.0,0.006066]
[1718849732982,5.14287303,65143.0,65142.0,0.006066]
[1718849733272,5.47517318,65143.0,65142.0,1e-06]
[1718849733483,1.094888,65123.0,65122.0,0.000946]
[1718849733689,1.50665083,65123.0,65122.0,0.000946]
[1718849734146,2.12102783,65123.0,65122.0,0.000946]
[1718849735234,2.099139,65123.0,65122.0,0.000946]
[1718849735435,1.504762,65123.0,65122.0,0.000946]
[1718849735649,1.507642,65123.0,65122.0,0.000946]
[1718849736521,1.487642,65123.0,65122.0,0.000946]
[1718849736715,1.490642,65123.0,65122.0,0.000946]
[1718849737157,1.487642,65123.0,65122.0,0.000946]
[1718849737382,1.491642,65123.0,65122.0,0.000946]
[1718849737565,1.494642,65123.0,65122.0,0.000946]
[1718849739460,1.514642,65123.0,65122.0,0.000946]
[1718849739662,1.494642,65123.0,65122.0,0.000946]
[1718849739865,1.801753,65123.0,65122.0,0.000946]
[1718849740183,2.290953,65123.0,65122.0,0.000946]
[1718849740387,1.996953,65123.0,65122.0,0.000946]
[1718849740753,1.821753,65123.0,65122.0,0.000946]
[1718849741248,1.801753,65123.0,65122.0,0.000946]
[1718849741472,1.494642,65123.0,65122.0,0.000946]
[1718849742509,1.495502,65123.0,65122.0,0.233346]
[1718849743079,0.88612988,65123.0,65122.0,0.233346]
[1718849743287,0.57901888,65123.0,65122.0,0.233346]
[1718849743928,0.57613888,65123.0,65122.0,0.233346]
[1718849744125,0.56913888,65123.0,65122.0,0.233346]
[1718849744562,0.57113888,65123.0,65122.0,0.233346]
[1718849745169,0.59253291,65123.0,65122.0,0.233346]
[1718849745731,0.28542191,65123.0,65122.0,0.233346]
[1718849746093,0.01236171,65123.0,65122.0,0.233346]
[1718849746725,0.01136171,65123.0,65122.0,0.233346]
[1718849746993,0.01236171,65123.0,65122.0,0.233346]
[1718849747195,0.01336171,65123.0,65122.0,0.233346]
[1718849747431,0.01136171,65123.0,65122.0,0.233346]
[1718849747785,0.01036171,65123.0,65122.0,0.235346]
[1718849747988,0.01036171,65123.0,65122.0,0.394903]
[1718849748221,0.01136171,65123.0,65122.0,0.700018]
[1718849748417,0.00186,65123.0,65122.0,0.725018]
[1718849749075,0.00186,65123.0,65122.0,0.397903]
[1718849750061,0.01701377,65123.0,65122.0,0.417903]
[1718849750398,0.01776762,65123.0,65122.0,0.417903]
[1718849750608,0.01776762,65123.0,65122.0,0.244346]
[1718849752671,0.47843362,65123.0,65122.0,0.244346]
[1718849753245,0.93524462,65123.0,65122.0,0.011946]
[1718849753422,1.49491674,65123.0,65122.0,0.011946]
[1718849754171,1.49391674,65123.0,65122.0,0.005946]
[1718849754370,1.49391674,65123.0,65122.0,0.000946]
[1718849754616,1.50691674,65123.0,65122.0,0.002946]
[1718849754967,1.50691674,65123.0,65122.0,0.001946]
[1718849754968,1.49991674,65123.0,65122.0,0.001946]
[1718849755148,1.49391674,65123.0,65122.0,0.000946]
[1718849755308,1.50491674,65123.0,65122.0,0.001946]
[1718849755507,1.51491674,65123.0,65122.0,0.002946]
[1718849756306,1.53491674,65123.0,65122.0,0.002946]
[1718849757303,1.51751611,65123.0,65122.0,0.001946]
[1718849757623,1.50751611,65123.0,65122.0,0.000946]
[1718849757820,2.75832911,65123.0,65122.0,0.001946]
[1718849758026,2.80613652,65123.0,65122.0,0.002946]
[1718849758426,2.81713652,65123.0,65122.0,0.003946]
[1718849759063,2.81113652,65123.0,65122.0,0.002946]
[1718849759786,2.89510309,65123.0,65122.0,0.002946]
[1718849759994,2.90237375,65123.0,65122.0,0.002946]
[1718849760195,2.81113652,65123.0,65122.0,0.002946]
[1718849760396,2.91410506,65123.0,65122.0,0.002946]
[1718849760663,3.10716952,65123.0,65122.0,0.002946]
[1718849760862,3.21616952,65123.0,65122.0,0.003946]
[1718849761448,3.63218317,65123.0,65122.0,0.003946]
[1718849761655,3.63218317,65123.0,65110.0,6.6344415]
[1718849761656,1.402251,65111.0,65110.0,6.6344415]
[1718849761854,1.81401911,65111.0,65110.0,6.6344415]
[1718849762219,2.49628153,65111.0,65110.0,6.6344415]
[1718849762597,2.34681452,65111.0,65110.0,6.6344415]
[1718849763374,2.44681452,65111.0,65110.0,6.6344415]
[1718849764174,2.35081452,65111.0,65110.0,6.6344415]
[1718849764379,2.46081452,65111.0,65110.0,6.6344415]
[1718849764921,2.44681452,65111.0,65110.0,6.6344415]
[1718849765297,2.47481452,65111.0,65110.0,6.6344415]
[1718849765513,2.55914554,65111.0,65110.0,6.6344415]
[1718849765715,2.55914554,65111.0,65110.0,6.6295915]
[1718849765977,2.49383114,65111.0,65110.0,6.6295915]
[1718849766185,2.54366966,65111.0,65110.0,6.6295915]
[1718849766589,2.45933864,65111.0,65110.0,6.62680217]
[1718849766800,2.45933864,65111.0,65110.0,6.62288751]
[1718849766946,2.44533864,65111.0,65110.0,6.62288751]
[1718849767153,2.44533864,65111.0,65110.0,6.61921751]
[1718849767387,2.45933864,65111.0,65110.0,6.61921751]
[1718849767589,2.47333864,65111.0,65110.0,6.61921751]
[1718849767809,2.42812012,65111.0,65110.0,6.61641751]
[1718849768134,2.45001793,65111.0,65110.0,6.60098751]
[1718849768493,2.47801793,65111.0,65110.0,6.60098751]
[1718849768886,2.46401793,65111.0,65110.0,6.59958751]
[1718849769082,2.46401793,65111.0,65110.0,6.59495751]
[1718849769574,2.77118493,65111.0,65110.0,6.59495751]
[1718849769766,2.82118493,65111.0,65110.0,6.58846291]
[1718849770298,2.83518493,65111.0,65110.0,6.58846291]
[1718849770511,2.83518493,65111.0,65110.0,6.58717291]
[1718849771133,2.73518493,65111.0,65110.0,6.53997291]
[1718849771337,2.83518493,65111.0,65110.0,6.53997291]
[1718849772485,2.70875107,65111.0,65110.0,6.27631378]
[1718849772696,2.70875107,65111.0,65110.0,6.21374641]
[1718849772815,6.77254307,65111.0,65110.0,6.21374641]
[1718849773010,2.73001978,65111.0,65110.0,6.21374641]
[1718849773219,7.62611978,65111.0,65110.0,6.17974641]
[1718849773556,2.73001978,65111.0,65110.0,6.17974641]
[1718849773906,7.50703378,65111.0,65110.0,6.17974641]
[1718849774110,2.60562696,65111.0,65110.0,6.17974641]
[1718849774423,5.46588896,65111.0,65110.0,6.17974641]
[1718849774633,2.60562696,65111.0,65110.0,6.17974641]
[1718849774843,2.60562696,65111.0,65110.0,6.18069241]
[1718849775032,4.84287996,65111.0,65110.0,6.18069241]
[1718849775257,2.50562696,65111.0,65110.0,6.18069241]
[1718849775458,3.85438296,65111.0,65110.0,6.18069241]
[1718849775614,3.69238296,65111.0,65110.0,6.18069241]
[1718849775780,1.89606794,65111.0,65110.0,6.18069241]
[1718849775981,1.86790662,65111.0,65110.0,6.32009241]
[1718849776222,1.98178362,65111.0,65110.0,6.42349241]
[1718849776422,1.96178706,65111.0,65110.0,6.42349241]
[1718849777025,1.95716706,65111.0,65110.0,6.42349241]
[1718849777206,1.94316706,65111.0,65110.0,6.42349241]
[1718849777659,1.84329006,65111.0,65110.0,6.42349241]
[1718849778003,1.64031806,65111.0,65110.0,6.42349241]
[1718849778210,1.37242306,65111.0,65110.0,6.42349241]
[1718849778652,0.96525606,65111.0,65110.0,6.42349241]
[1718849778847,0.96525728,65111.0,65110.0,6.42349241]
[1718849779271,0.96987728,65111.0,65110.0,6.42349241]
[1718849779453,0.98387728,65111.0,65110.0,6.42449241]
[1718849780024,1.29104428,65111.0,65110.0,6.42449241]
[1718849780223,1.39104428,65111.0,65110.0,6.42449241]
[1718849780426,1.37704428,65111.0,65110.0,6.42449241]
[1718849780907,1.37204428,65111.0,65110.0,6.42349241]
[1718849781041,1.36304428,65111.0,65110.0,6.42349241]
[1718849781246,1.06087728,65111.0,65110.0,6.42449241]
[1718849781506,0.27871345,65111.0,65110.0,6.42449241]
[1718849781703,0.58588045,65111.0,65110.0,6.42449241]
[1718849782061,0.12513045,65111.0,65110.0,6.42449241]
[1718849782206,0.02513045,65111.0,65110.0,6.42449241]
[1718849782404,0.02513045,65111.0,65110.0,6.42349241]
[1718849782606,0.01062,65111.0,65110.0,6.42349241]
[1718849783309,0.01551275,65111.0,65110.0,6.42349241]
[1718849783712,0.00951275,65111.0,65110.0,6.42349241]
[1718849783910,0.00951275,65111.0,65110.0,6.18069241]
[1718849784137,0.00951275,65111.0,65110.0,6.18469241]
[1718849784342,0.00951275,65111.0,65110.0,6.18069241]
[1718849784501,0.00951275,65111.0,65110.0,6.42179241]
[1718849784698,0.01151275,65111.0,65110.0,6.43279241]
[1718849790234,0.16509575,65111.0,65110.0,6.43279241]
[1718849790437,0.11151275,65111.0,65110.0,6.43279241]
[1718849792112,0.11151129,65111.0,65110.0,6.43279241]
[1718849793168,0.01151129,65111.0,65110.0,6.91355041]
[1718849793363,0.00086,65123.0,65115.0,0.153573]
[1718849793568,0.00869644,65122.0,65118.0,0.2498]
[1718849793820,0.00869644,65122.0,65117.0,0.02]
[1718849793821,0.00869644,65122.0,65121.0,0.2498]
[1718849794036,0.00086,65123.0,65122.0,0.245]
[1718849794189,0.00086,65123.0,65122.0,0.398557]
[1718849794820,0.00086,65123.0,65122.0,0.418557]
[1718849795039,0.00086,65123.0,65122.0,0.705672]
[1718849795241,0.00086,65123.0,65122.0,0.725672]
[1718849796179,0.00086,65123.0,65122.0,0.727672]
[1718849797596,0.00086,65123.0,65122.0,0.728672]